lending/lending_fUSD_20250808
["ID","MTS","AMOUNT","RATE_DAILY","PERIOD"]
[377961131,1754629843686,-614.18,0.00018884,2]
[377961133,1754629843695,-624.02,0.00018884,2]
[377961136,1754629843704,-400.0,0.00018884,2]
[377961138,1754629843713,-900.93,0.00018884,2]
[377961139,1754629843724,-400.0,0.00018884,2]
[377961142,1754629843734,-911.95,0.00018884,2]
[377961144,1754629843744,-493.63,0.00018884,2]
[377961146,1754629843753,-400.0,0.00018884,2]
[377961148,1754629843762,-400.0,0.00018884,2]
[377961150,1754629843771,-400.0,0.00018884,2]
[377961152,1754629843780,-400.0,0.00018884,2]
[377961154,1754629843790,-410.72,0.00018884,2]
[377961156,1754629843799,-633.43,0.00018884,2]
[377961157,1754629843808,-442.82,0.00018884,2]
[377961160,1754629843817,-1009.84,0.00018884,2]
[377961161,1754629843826,-293.34259548,0.00018884,2]
[377961163,1754629843835,-400.0,0.00018884,2]
[377961165,1754629843845,-400.0,0.00018884,2]
[377961168,1754629843854,-400.0,0.00018884,2]
[377961170,1754629843863,-726.91,0.00018884,2]
[377961172,1754629843873,-400.0,0.00018884,2]
[377961174,1754629843883,-400.0,0.00018884,2]
[377961176,1754629843892,-462.4,0.00018884,2]
[377961178,1754629843901,-400.0,0.00018884,2]
[377961180,1754629843910,-430.11,0.00018884,2]
[377961182,1754629843919,-403.22,0.00018884,2]
[377961184,1754629843927,-875.75,0.00018884,2]
[377961186,1754629843937,-400.0,0.00018884,2]
[377961188,1754629843946,-400.0,0.00018884,2]
[377961190,1754629843955,-714.46,0.00018884,2]
[377961192,1754629843964,-845.33,0.00018884,2]
[377961194,1754629843974,-400.0,0.00018884,2]
[377961196,1754629843984,-400.0,0.00018884,2]
[377961198,1754629843993,-1037.77,0.00018884,2]
[377961200,1754629844002,-400.0,0.00018884,2]
[377961202,1754629844011,-681.13,0.00018884,2]
[377961204,1754629844020,-575.95,0.00018884,2]
[377961206,1754629844030,-400.0,0.00018884,2]
[377961208,1754629844040,-400.0,0.00018884,2]
[377961210,1754629844050,-400.0,0.00018884,2]
[377961212,1754629844059,-400.0,0.00018884,2]
[377961214,1754629844068,-978.53,0.00018884,2]
[377961216,1754629844077,-508.88,0.00018884,2]
[377961218,1754629844086,-400.0,0.00018884,2]
[377961220,1754629844095,-420.82019845,0.00018884,2]
[377961222,1754629844104,-400.0,0.00018884,2]
[377961224,1754629844114,-873.08,0.00018884,2]
[377961226,1754629844123,-878.61,0.00018884,2]
[377961228,1754629844132,-463.94,0.00018884,2]
[377961230,1754629844142,-956.96,0.00018884,2]
[377961232,1754629844151,-1209.08,0.00018884,2]
[377961234,1754629844159,-400.0,0.00018884,2]
[377961236,1754629844168,-400.0,0.00018884,2]
[377961238,1754629844178,-819.76,0.00018884,2]
[377961240,1754629844187,-1268.13,0.00018884,2]
[377961242,1754629844196,-400.0,0.00018884,2]
[377961244,1754629844205,-400.0,0.00018884,2]
[377961246,1754629844213,-400.0,0.00018884,2]
[377961248,1754629844223,-548.83,0.00018884,2]
[377961250,1754629844232,-400.0,0.00018884,2]
[377961252,1754629844241,-514.48,0.00018884,2]
[377961254,1754629844251,-400.0,0.00018884,2]
[377961256,1754629844260,-496.93,0.00018884,2]
[377961258,1754629844270,-400.0,0.00018884,2]
[377961260,1754629844279,-400.0,0.00018884,2]
[377961262,1754629844288,-400.0,0.00018884,2]
[377961264,1754629844297,-400.0,0.00018884,2]
[377961266,1754629844309,-1076.07,0.00018884,2]
[377961268,1754629844318,-400.0,0.00018884,2]
[377961270,1754629844327,-672.31,0.00018884,2]
[377961272,1754629844340,-400.0,0.00018884,2]
[377961274,1754629844349,-510.52,0.00018884,2]
[377961276,1754629844358,-535.09757813,0.00018884,2]
[377961278,1754629844367,-585.71,0.00018884,2]
[377961280,1754629844378,-419.754901,0.00018884,2]
[377961282,1754629844387,-1301.38,0.00018884,2]
[377961284,1754629844396,-400.0,0.00018884,2]
[377961286,1754629844405,-400.0,0.00018884,2]
[377961288,1754629844415,-669.12,0.00018884,2]
[377961290,1754629844425,-670.66,0.00018884,2]
[377961292,1754629844435,-400.0,0.00018884,2]
[377961294,1754629844443,-536.57,0.00018884,2]
[377961296,1754629844453,-719.49,0.00018884,2]
[377961298,1754629844462,-581.68,0.00018884,2]
[377961300,1754629844471,-400.0,0.00018884,2]
[377961302,1754629844481,-635.45,0.00018884,2]
[377961304,1754629844490,-541.02,0.00018884,2]
[377961306,1754629844500,-400.0,0.00018884,2]
[377961308,1754629844509,-894.49,0.00018884,2]
[377961310,1754629844519,-430.37,0.00018884,2]
[377961312,1754629844529,-1240.9,0.00018884,2]
[377961314,1754629844539,-400.0,0.00018884,2]
[377961316,1754629844548,-410.18,0.00018884,2]
[377961318,1754629844558,-800.46,0.00018884,2]
[377961320,1754629844567,-824.45,0.00018884,2]
[377961322,1754629844576,-400.0,0.00018884,2]
[377961324,1754629844586,-1095.1,0.00018884,2]
[377961326,1754629844596,-400.0,0.00018884,2]
[377961328,1754629844605,-400.0,0.00018884,2]
[377961330,1754629844614,-516.64382036,0.00018884,2]
[377961332,1754629844623,-400.0,0.00018884,2]
[377961334,1754629844632,-400.0,0.00018884,2]
[377961336,1754629844641,-402.41791832,0.00018884,2]
[377961338,1754629844650,-400.0,0.00018884,2]
[377961340,1754629844659,-400.0,0.00018884,2]
[377961342,1754629844669,-624.82,0.00018884,2]
[377961344,1754629844678,-400.0,0.00018884,2]
[377961346,1754629844687,-458.01,0.00018884,2]
[377961348,1754629844696,-400.0,0.00018884,2]
[377961350,1754629844706,-514.89,0.00018884,2]
[377961352,1754629844715,-605.59,0.00018884,2]
[377961354,1754629844726,-865.5,0.00018884,2]
[377961356,1754629844735,-1040.68,0.00018884,2]
[377961358,1754629844745,-5831.89,0.00018884,2]
[377961360,1754629844754,-827.85,0.00018884,2]
[377961362,1754629844763,-400.0,0.00018884,2]
[377961364,1754629844773,-819.97,0.00018884,2]
[377961366,1754629844782,-400.0,0.00018884,2]
[377961368,1754629844791,-513.3,0.00018884,2]
[377961370,1754629844800,-1117.04,0.00018884,2]
[377961372,1754629844809,-400.0,0.00018884,2]
[377961374,1754629844818,-430.58,0.00018884,2]
[377961376,1754629844827,-400.0,0.00018884,2]
[377961378,1754629844836,-400.0,0.00018884,2]
[377961380,1754629844848,-1270.16,0.00018884,2]
[377961383,1754629844857,-400.0,0.00018884,2]
[377961385,1754629844867,-400.0,0.00018884,2]
[377961387,1754629844876,-392.52868237,0.00018884,2]
[377961389,1754629844885,-488.45,0.00018884,2]
[377961390,1754629844894,-693.3,0.00018884,2]
[377961392,1754629844903,-400.0,0.00018884,2]
[377961394,1754629844913,-400.0,0.00018884,2]
[377961395,1754629844922,-400.0,0.00018884,2]
[377961397,1754629844932,-400.0,0.00018884,2]
[377961399,1754629844941,-400.0,0.00018884,2]
[377961400,1754629844950,-880.91,0.00018884,2]
[377961401,1754629844960,-400.0,0.00018884,2]
[377961402,1754629844971,-400.0,0.00018884,2]
[377961403,1754629844981,-237.91289884,0.00018884,2]
[377961404,1754629844990,-1434.77,0.00018884,2]
[377961405,1754629844999,-400.0,0.00018884,2]
[377961406,1754629845009,-400.0,0.00018884,2]
[377961407,1754629845018,-655.55,0.00018884,2]
[377961408,1754629845027,-400.0,0.00018884,2]
[377961409,1754629845036,-400.0,0.00018884,2]
[377961410,1754629845046,-945.63,0.00018884,2]
[377961411,1754629845055,-400.0,0.00018884,2]
[377961412,1754629845064,-614.5,0.00018884,2]
[377961413,1754629845073,-981.37,0.00018884,2]
[377961414,1754629845083,-400.0,0.00018884,2]
[377961415,1754629845092,-400.0,0.00018884,2]
[377961416,1754629845102,-818.69,0.00018884,2]
[377961417,1754629845112,-400.0,0.00018884,2]
[377961418,1754629845122,-400.0,0.00018884,2]
[377961419,1754629845131,-400.0,0.00018884,2]
[377961420,1754629845140,-400.0,0.00018884,2]
[377961421,1754629845150,-400.0,0.00018884,2]
[377961422,1754629845159,-400.0,0.00018884,2]
[377961424,1754629845169,-888.89,0.00018884,2]
[377961426,1754629845178,-400.0,0.00018884,2]
[377961428,1754629845187,-400.0,0.00018884,2]
[377961430,1754629845196,-400.0,0.00018884,2]
[377961431,1754629845205,-505.93,0.00018884,2]
[377961432,1754629845214,-400.0,0.00018884,2]
[377961433,1754629845223,-737.04,0.00018884,2]
[377961434,1754629845232,-400.0,0.00018884,2]
[377961435,1754629845241,-942.54,0.00018884,2]
[377961436,1754629845250,-1144.83,0.00018884,2]
[377961437,1754629845259,-371.09184205,0.00018884,2]
[377961438,1754629845269,-400.0,0.00018884,2]
[377961439,1754629845278,-400.0,0.00018884,2]
[377961440,1754629845287,-456.6,0.00018884,2]
[377961441,1754629845296,-793.01,0.00018884,2]
[377961442,1754629845305,-955.34,0.00018884,2]
[377961443,1754629845314,-400.0,0.00018884,2]
[377961445,1754629845322,-403.78,0.00018884,2]
[377961447,1754629845333,-400.0,0.00018884,2]
[377961449,1754629845343,-400.0,0.00018884,2]
[377961450,1754629845352,-1268.06,0.00018884,2]
[377961452,1754629845361,-400.0,0.00018884,2]
[377961453,1754629845371,-1148.41,0.00018884,2]
[377961454,1754629845381,-400.0,0.00018884,2]
[377961455,1754629845389,-400.0,0.00018884,2]
[377961456,1754629845399,-400.0,0.00018884,2]
[377961457,1754629845409,-728.93,0.00018884,2]
[377961458,1754629845419,-518.37,0.00018884,2]
[377961459,1754629845428,-971.61,0.00018884,2]
[377961460,1754629845437,-400.0,0.00018884,2]
[377961461,1754629845446,-400.0,0.00018884,2]
[377961462,1754629845455,-1470.2,0.00018884,2]
[377961463,1754629845464,-1277.94,0.00018884,2]
[377961464,1754629845473,-400.0,0.00018884,2]
[377961465,1754629845483,-419.67,0.00018884,2]
[377961466,1754629845492,-400.0,0.00018884,2]
[377961467,1754629845502,-947.62,0.00018884,2]
[377961468,1754629845511,-400.0,0.00018884,2]
[377961469,1754629845520,-635.45,0.00018884,2]
[377961470,1754629845529,-400.0,0.00018884,2]
[377961471,1754629845538,-400.0,0.00018884,2]
[377961472,1754629845547,-1091.66,0.00018884,2]
[377961473,1754629845556,-709.03,0.00018884,2]
[377961474,1754629845565,-529.38,0.00018884,2]
[377961475,1754629845574,-400.0,0.00018884,2]
[377961476,1754629845583,-400.0,0.00018884,2]
[377961477,1754629845592,-1621.7,0.00018884,2]
[377961478,1754629845602,-400.0,0.00018884,2]
[377961479,1754629845611,-499.97,0.00018884,2]
[377961480,1754629845620,-400.0,0.00018884,2]
[377961481,1754629845631,-400.0,0.00018884,2]
[377961482,1754629845640,-400.0,0.00018884,2]
[377961483,1754629845649,-786.52,0.00018884,2]
[377961484,1754629845659,-400.0,0.00018884,2]
[377961485,1754629845668,-632.12,0.00018884,2]
[377961486,1754629845678,-400.0,0.00018884,2]
[377961487,1754629845687,-400.0,0.00018884,2]
[377961488,1754629845696,-804.71,0.00018884,2]
[377961489,1754629845705,-771.05,0.00018884,2]
[377961490,1754629845714,-613.72,0.00018884,2]
[377961491,1754629845723,-350.23867227,0.00018884,2]
[377961492,1754629845732,-770.92,0.00018884,2]
[377961493,1754629845741,-400.0,0.00018884,2]
[377961494,1754629845750,-951.41,0.00018884,2]
[377961495,1754629845760,-400.0,0.00018884,2]
[377961496,1754629845770,-1413.59,0.00018884,2]
[377961497,1754629845779,-827.64,0.00018884,2]
[377961498,1754629845789,-2477.58,0.00018884,2]
[377961499,1754629845798,-730.0,0.00018884,2]
[377961500,1754629845808,-421.17505665,0.00018884,2]
[377961501,1754629845817,-413.47,0.00018884,2]
[377961502,1754629845825,-705.52,0.00018884,2]
[377961503,1754629845834,-914.54,0.00018884,2]
[377961504,1754629845843,-1479.33,0.00018884,2]
[377961505,1754629845852,-822.01,0.00018884,2]
[377961506,1754629845861,-400.0,0.00018884,2]
[377961507,1754629845871,-943.85,0.00018884,2]
[377961508,1754629845880,-462.63,0.00018884,2]
[377961509,1754629845889,-820.33,0.00018884,2]
[377961510,1754629845898,-764.78,0.00018884,2]
[377961511,1754629845907,-751.86,0.00018884,2]
[377961512,1754629845916,-400.0,0.00018884,2]
[377961513,1754629845925,-400.0,0.00018884,2]
[377961514,1754629845935,-400.0,0.00018884,2]
[377961515,1754629845944,-400.0,0.00018884,2]
[377961516,1754629845953,-400.0,0.00018884,2]
[377961517,1754629845962,-400.0,0.00018884,2]
[377961518,1754629845971,-400.0,0.00018884,2]
[377961519,1754629845980,-400.0,0.00018884,2]
[377961520,1754629845989,-400.0,0.00018884,2]
[377961521,1754629845997,-976.37,0.00018884,2]
[377961522,1754629846007,-1767.92,0.00018884,2]
[377961523,1754629846016,-1399.8,0.00018884,2]
[377961524,1754629846025,-604.32,0.00018884,2]
[377961525,1754629846035,-400.0,0.00018884,2]
[377961526,1754629846043,-400.0,0.00018884,2]
[377961527,1754629846057,-400.0,0.00018884,2]
[377961529,1754629846067,-495.04384578,0.00018884,2]
[377961530,1754629846076,-744.5,0.00018884,2]
[377961531,1754629846085,-599.79,0.00018884,2]
[377961532,1754629846094,-400.0,0.00018884,2]
[377961533,1754629846103,-463.88,0.00018884,2]
[377961534,1754629846112,-882.9,0.00018884,2]
[377961535,1754629846121,-400.0,0.00018884,2]
[377961536,1754629846130,-400.0,0.00018884,2]
[377961537,1754629846139,-549.18,0.00018884,2]
[377961538,1754629846147,-896.68,0.00018884,2]
[377961539,1754629846156,-400.0,0.00018884,2]
[377961540,1754629846165,-1231.74,0.00018884,2]
[377961541,1754629846174,-778.16,0.00018884,2]
[377961542,1754629846183,-1166.48,0.00018884,2]
[377961543,1754629846193,-1023.88,0.00018884,2]
[377961544,1754629846202,-400.0,0.00018884,2]
[377961545,1754629846211,-1529.24,0.00018884,2]
[377961546,1754629846221,-400.0,0.00018884,2]
[377961547,1754629846230,-400.0,0.00018884,2]
[377961548,1754629846239,-400.0,0.00018884,2]
[377961549,1754629846248,-400.0,0.00018884,2]
[377961550,1754629846258,-1284.74,0.00018884,2]
[377961551,1754629846269,-432.9,0.00018884,2]
[377961552,1754629846278,-769.67,0.00018884,2]
[377961553,1754629846287,-400.0,0.00018884,2]
[377961554,1754629846296,-842.94,0.00018884,2]
[377961555,1754629846306,-1078.81,0.00018884,2]
[377961556,1754629846315,-400.0,0.00018884,2]
[377961557,1754629846325,-1108.57,0.00018884,2]
[377961558,1754629846337,-402.1876538,0.00018884,2]
[377961559,1754629846346,-422.68,0.00018884,2]
[377961560,1754629846355,-400.0,0.00018884,2]
[377961561,1754629846367,-734.21,0.00018884,2]
[377961562,1754629846376,-925.3,0.00018884,2]
[377961563,1754629846385,-772.08,0.00018884,2]
[377961564,1754629846394,-450.55,0.00018884,2]
[377961565,1754629846404,-400.0,0.00018884,2]
[377961566,1754629846415,-400.0,0.00018884,2]
[377961567,1754629846424,-409.03958474,0.00018884,2]
[377961568,1754629846434,-1369.82,0.00018884,2]
[377961569,1754629846444,-1445.95,0.00018884,2]
[377961570,1754629846454,-1135.2,0.00018884,2]
[377961571,1754629846464,-400.0,0.00018884,2]
[377961572,1754629846474,-400.0,0.00018884,2]
[377961573,1754629846484,-402.18873168,0.00018884,2]
[377961574,1754629846494,-400.0,0.00018884,2]
[377961575,1754629846504,-1189.58,0.00018884,2]
[377961576,1754629846515,-1104.48,0.00018884,2]
[377961577,1754629846524,-577.21,0.00018884,2]
[377961578,1754629846534,-400.0,0.00018884,2]
[377961579,1754629846545,-400.0,0.00018884,2]
[377961580,1754629846554,-369.29818011,0.00018884,2]
[377961581,1754629846564,-536.46,0.00018884,2]
[377961582,1754629846574,-1636.67,0.00018884,2]
[377961583,1754629846584,-610.48,0.00018884,2]
[377961584,1754629846594,-400.0,0.00018884,2]
[377961585,1754629846604,-434.46,0.00018884,2]
[377961586,1754629846614,-750.94,0.00018884,2]
[377961587,1754629846624,-819.22,0.00018884,2]
[377961588,1754629846634,-400.0,0.00018884,2]
[377961589,1754629846644,-400.0,0.00018884,2]
[377961590,1754629846654,-806.93,0.00018884,2]
[377961591,1754629846663,-400.0,0.00018884,2]
[377961592,1754629846674,-1434.94,0.00018884,2]
[377961593,1754629846684,-400.0,0.00018884,2]
[377961594,1754629846694,-401.66,0.00018884,2]
[377961595,1754629846704,-526.33807191,0.00018884,2]
[377961596,1754629846714,-1153.82,0.00018884,2]
[377961597,1754629846725,-841.6,0.00018884,2]
[377961598,1754629846735,-1366.35,0.00018884,2]
[377961599,1754629846744,-491.35,0.00018884,2]
[377961600,1754629846754,-164.9445586,0.00018884,2]
[377961601,1754629846764,-552.15,0.00018884,2]
[377961602,1754629846774,-1375.77,0.00018884,2]
[377961603,1754629846784,-400.0,0.00018884,2]
[377961604,1754629846794,-1426.43,0.00018884,2]
[377961605,1754629846804,-795.22,0.00018884,2]
[377961606,1754629846814,-400.0,0.00018884,2]
[377961607,1754629846825,-452.81608835,0.00018884,2]
[377961608,1754629846835,-1466.3,0.00018884,2]
[377961609,1754629846845,-1221.73,0.00018884,2]
[377961610,1754629846855,-400.0,0.00018884,2]
[377961611,1754629846864,-1107.28,0.00018884,2]
[377961612,1754629846874,-410.77,0.00018884,2]
[377961613,1754629846886,-814.42,0.00018884,2]
[377961614,1754629846896,-400.0,0.00018884,2]
[377961615,1754629846906,-400.0,0.00018884,2]
[377961616,1754629846916,-2003.01,0.00018884,2]
[377961617,1754629846926,-768.8,0.00018884,2]
[377961618,1754629846936,-630.02,0.00018884,2]
[377961619,1754629846945,-1118.43,0.00018884,2]
[377961620,1754629846955,-799.92,0.00018884,2]
[377961621,1754629846964,-2015.79,0.00018884,2]
[377961622,1754629846974,-400.0,0.00018884,2]
[377961623,1754629846984,-14045.71,0.00018884,2]
[377961624,1754629846994,-400.0,0.00018884,2]
[377961625,1754629847003,-400.0,0.00018884,2]
[377961626,1754629847013,-400.0,0.00018884,2]
[377961627,1754629847023,-406.17,0.00018884,2]
[377961628,1754629847033,-400.0,0.00018884,2]
[377961629,1754629847043,-1350.3,0.00018884,2]
[377961630,1754629847053,-790.55,0.00018884,2]
[377961631,1754629847062,-400.0,0.00018884,2]
[377961632,1754629847072,-1182.81,0.00018884,2]
[377961633,1754629847082,-515.03,0.00018884,2]
[377961634,1754629847092,-403.47500644,0.00018884,2]
[377961635,1754629847102,-996.6,0.00018884,2]
[377961636,1754629847112,-591.18,0.00018884,2]
[377961637,1754629847122,-400.0,0.00018884,2]
[377961638,1754629847131,-716.36,0.00018884,2]
[377961639,1754629847141,-576.43,0.00018884,2]
[377961640,1754629847151,-400.0,0.00018884,2]
[377961641,1754629847161,-1065.93,0.00018884,2]
[377961642,1754629847171,-1094.87,0.00018884,2]
[377961643,1754629847180,-400.0,0.00018884,2]
[377961644,1754629847189,-648.11,0.00018884,2]
[377961645,1754629847199,-880.16,0.00018884,2]
[377961646,1754629847209,-400.0,0.00018884,2]
[377961647,1754629847219,-1441.54,0.00018884,2]
[377961648,1754629847229,-736.67,0.00018884,2]
[377961649,1754629847239,-1131.32,0.00018884,2]
[377961650,1754629847249,-998.27,0.00018884,2]
[377961651,1754629847259,-725.33,0.00018884,2]
[377961652,1754629847270,-400.0,0.00018884,2]
[377961653,1754629847280,-400.0,0.00018884,2]
[377961654,1754629847290,-675.74,0.00018884,2]
[377961655,1754629847299,-458.38707688,0.00018884,2]
[377961656,1754629847309,-500.9,0.00018884,2]
[377961657,1754629847320,-400.0,0.00018884,2]
[377961658,1754629847329,-530.44,0.00018884,2]
[377961659,1754629847343,-400.0,0.00018884,2]
[377961660,1754629847353,-400.0,0.00018884,2]
[377961661,1754629847362,-400.0,0.00018884,2]
[377961662,1754629847372,-1881.11,0.00018884,2]
[377961663,1754629847382,-400.0,0.00018884,2]
[377961664,1754629847392,-400.0,0.00018884,2]
[377961665,1754629847402,-400.0,0.00018884,2]
[377961666,1754629847412,-400.0,0.00018884,2]
[377961667,1754629847422,-400.0,0.00018884,2]
[377961668,1754629847431,-596.27,0.00018884,2]
[377961669,1754629847441,-883.42,0.00018884,2]
[377961670,1754629847450,-967.7,0.00018884,2]
[377961671,1754629847460,-671.52,0.00018884,2]
[377961672,1754629847469,-400.0,0.00018884,2]
[377961673,1754629847480,-842.28,0.00018884,2]
[377961674,1754629847490,-1072.36,0.00018884,2]
[377961675,1754629847500,-400.0,0.00018884,2]
[377961676,1754629847510,-400.0,0.00018884,2]
[377961677,1754629847520,-1148.44,0.00018884,2]
[377961678,1754629847530,-422.25,0.00018884,2]
[377961679,1754629847540,-1171.78,0.00018884,2]
[377961680,1754629847550,-1190.81,0.00018884,2]
[377961681,1754629847559,-400.0,0.00018884,2]
[377961682,1754629847570,-400.0,0.00018884,2]
[377961683,1754629847580,-1451.03,0.00018884,2]
[377961684,1754629847590,-1076.26,0.00018884,2]
[377961685,1754629847600,-558.87,0.00018884,2]
[377961686,1754629847610,-400.0,0.00018884,2]
[377961687,1754629847620,-400.0,0.00018884,2]
[377961688,1754629847631,-1308.36,0.00018884,2]
[377961689,1754629847640,-439.07,0.00018884,2]
[377961690,1754629847650,-409.45,0.00018884,2]
[377961691,1754629847661,-400.0,0.00018884,2]
[377961692,1754629847672,-840.7,0.00018884,2]
[377961693,1754629847682,-400.0,0.00018884,2]
[377961694,1754629847692,-400.0,0.00018884,2]
[377961695,1754629847704,-716.27,0.00018884,2]
[377961696,1754629847713,-1502.78,0.00018884,2]
[377961697,1754629847724,-1145.0,0.00018884,2]
[377961698,1754629847735,-460.87,0.00018884,2]
[377961699,1754629847748,-400.0,0.00018884,2]
[377961700,1754629847765,-1603.62,0.00018884,2]
[377961701,1754629847776,-539.04,0.00018884,2]
[377961702,1754629847786,-400.0,0.00018884,2]
[377961703,1754629847795,-1753.01,0.00018884,2]
[377961704,1754629847805,-420.8,0.00018884,2]
[377961705,1754629847815,-574.11,0.00018884,2]
[377961706,1754629847825,-750.65,0.00018884,2]
[377961707,1754629847835,-400.0,0.00018884,2]
[377961708,1754629847845,-1416.83,0.00018884,2]
[377961709,1754629847854,-400.0,0.00018884,2]
[377961710,1754629847862,-400.0,0.00018884,2]
[377961711,1754629847872,-789.19,0.00018884,2]
[377961712,1754629847882,-400.0,0.00018884,2]
[377961713,1754629847891,-691.61,0.00018884,2]
[377961714,1754629847901,-634.76,0.00018884,2]
[377961715,1754629847911,-400.0,0.00018884,2]
[377961716,1754629847920,-400.0,0.00018884,2]
[377961717,1754629847930,-3266.34,0.00018884,2]
[377961718,1754629847939,-485.9,0.00018884,2]
[377961719,1754629847949,-431.8,0.00018884,2]
[377961720,1754629847959,-400.0,0.00018884,2]
[377961721,1754629847968,-400.0,0.00018884,2]
[377961722,1754629847978,-1783.57,0.00018884,2]
[377961723,1754629847988,-224.17856905,0.00018884,2]
[377961724,1754629847999,-400.0,0.00018884,2]
[377961725,1754629848009,-989.52,0.00018884,2]
[377961726,1754629848019,-400.0,0.00018884,2]
[377961727,1754629848029,-508.5,0.00018884,2]
[377961728,1754629848039,-1134.1,0.00018884,2]
[377961729,1754629848049,-222.00854305,0.00018884,2]
[377961730,1754629848059,-1400.77,0.00018884,2]
[377961731,1754629848069,-1318.01,0.00018884,2]
[377961732,1754629848079,-613.13,0.00018884,2]
[377961733,1754629848089,-400.0,0.00018884,2]
[377961734,1754629848099,-400.0,0.00018884,2]
[377961735,1754629848110,-975.84,0.00018884,2]
[377961736,1754629848120,-1165.25,0.00018884,2]
[377961737,1754629848130,-524.76,0.00018884,2]
[377961738,1754629848140,-450.89,0.00018884,2]
[377961739,1754629848149,-400.0,0.00018884,2]
[377961740,1754629848159,-400.0,0.00018884,2]
[377961741,1754629848169,-400.0,0.00018884,2]
[377961742,1754629848179,-400.0,0.00018884,2]
[377961743,1754629848188,-400.0,0.00018884,2]
[377961744,1754629848198,-400.0,0.00018884,2]
[377961745,1754629848208,-400.0,0.00018884,2]
[377961746,1754629848219,-400.0,0.00018884,2]
[377961747,1754629848230,-400.0,0.00018885,2]
[377961748,1754629848239,-521.48,0.00018885,2]
[377961749,1754629848248,-400.0,0.00018885,2]
[377961750,1754629848258,-428.74,0.00018885,2]
[377961751,1754629848268,-400.0,0.00018885,2]
[377961752,1754629848277,-400.0,0.00018885,2]
[377961753,1754629848287,-400.0,0.00018885,2]
[377961754,1754629848297,-400.0,0.00018885,2]
[377961755,1754629848307,-400.0,0.00018885,2]
[377961756,1754629848317,-400.0,0.00018885,2]
[377961757,1754629848327,-400.0,0.00018885,2]
[377961758,1754629848340,-400.0,0.00018885,2]
[377961759,1754629848350,-400.0,0.00018885,2]
[377961760,1754629848360,-605.7,0.00018885,2]
[377961761,1754629848370,-237.62165252,0.00018885,2]
[377961762,1754629901393,-180.48,0.00018131,2]
[377961763,1754629901423,-87.03901612,0.00018882,2]
[377961764,1754630019872,259.88,0.00013699,2]
[377961766,1754630037446,500.0,0.00018,7]
[377961767,1754630052992,250.0,0.0002223,90]
[377961768,1754630100366,200.0,0.00016,30]
[377961769,1754630105968,518.67,0.00017939,2]
[377961770,1754630153476,265.59,0.00017,10]
[377961771,1754630177752,-300.72730839,0.00018238,2]
[377961772,1754630182278,-210.27269161,0.00018238,2]
[377961773,1754630208490,666.0,0.00017905,3]
[377961774,1754630215537,500.0,0.00018,7]